Cogmind - Beta 15 @@@ ROGUE MODE // 2025.08.20 @ 22:46:25 Player: puppuppit Result: Destroyed by Y-54 Guardian with Flak Gun Performance ------------- Evolutions (3) 1500 Regions Visited (9) 1800 Robots Destroyed (291) 1455 Value Destroyed (9435) 9435 Prototype IDs (3) 60 Alien Tech Used (0) 0 Bonus (5017) 5017 TOTAL SCORE: 19267 Bonus ------- Triggered High Security 500 High Alert Combat Kills 3790 Follower Combat Kills 358 Entered Garrisons 400 Friendly Fire -31 Cogmind --------- Core Integrity 0/700 Matter 254/300 Energy 99/100 System Corruption 0% Temperature Cool (12) Movement Core (50) Location -7/Factory Parts ------- > --- POWER (1) -------- (None) > --- PROPULSION (5) --- (None) > --- UTILITY (3) ------ (None) > --- WEAPON (4) ------- (None) > --- INVENTORY (5) ---- High-capacity Matter Pod (200) Improved Light Cannon Improved Light Cannon Advanced Assault Cannon Gauss Cannon Peak State ------------ > --- POWER ------------ Reinforced Deuterium Engine > --- PROPULSION ------- Armored Treads Advanced Treads Aerolev Unit > --- UTILITY ---------- Improved Heat Sink Large Storage Unit Improved Targeting Computer > --- WEAPON ----------- Advanced Assault Cannon Advanced Assault Cannon Advanced Assault Cannon Advanced Assault Cannon > --- INVENTORY -------- Light Treads Light Treads Advanced Treads Improved Heat Sink High-capacity Matter Pod High-capacity Matter Pod Improved Targeting Computer Graphene Brace High-powered Tractor Beam Gauss Cannon Gauss Cannon Gauss Cannon Gauss Cannon Grenade Launcher Grenade Launcher [Rating: 40] Favorites ----------- Power Reinforced Deuterium Engine Engine Reinforced Deuterium Engine Power Core Light Nuclear Core Propulsion Light Treads Treads Light Treads Hover Unit Improved Hover Unit Utility Large Storage Unit Device Improved Heat Sink Storage Large Storage Unit Processor Improved Targeting Computer Hackware System Shield Protection Weapon Shielding Weapon Advanced Assault Cannon Energy Gun EM Pulse Gun Ballistic Gun Light Assault Rifle Ballistic Cannon Advanced Assault Cannon Launcher Grenade Launcher Build | -11 -10 -10 -10 -9 -8 -8 -8 -8 -7 ------- Run | Yrd Mat Min Exi Min Mat Gar Mat Gar Fac Slots Evolved 6 | . . . . . 4 . . . 2 Power . | . . . . . . . . . . Propulsion 3 | . . . . . 1 . . . 2 Utility 1 | . . . . . 1 . . . . Weapon 2 | . . . . . 2 . . . . Parts Attached 107 | 7 11 . 1 2 37 8 20 11 10 Power 11 | 1 2 . . . 3 . 3 1 1 Engine 9 | 1 1 . . . 3 . 2 1 1 Core 2 | . 1 . . . . . 1 . . Reactor . | . . . . . . . . . . Propulsion 33 | 2 2 . 1 . 9 6 3 5 5 Treads 29 | 2 2 . 1 . 8 6 3 5 2 Leg . | . . . . . . . . . . Wheel . | . . . . . . . . . . Hover 4 | . . . . . 1 . . . 3 Flight . | . . . . . . . . . . Utility 23 | 2 3 . . . 10 . 8 . . Device 6 | 1 . . . . 3 . 2 . . Storage 5 | 1 2 . . . 1 . 1 . . Processor 6 | . . . . . 4 . 2 . . Hackware 3 | . . . . . 1 . 2 . . Protection 3 | . 1 . . . 1 . 1 . . Artifact . | . . . . . . . . . . Weapon 40 | 2 4 . . 2 15 2 6 5 4 Energy Gun 2 | 1 1 . . . . . . . . Energy Cannon . | . . . . . . . . . . Ballistic Gun 14 | 1 3 . . 1 9 . . . . Ballistic Cannon 20 | . . . . . 5 2 5 4 4 Launcher 4 | . . . . 1 1 . 1 1 . Special Weapon . | . . . . . . . . . . Impact Weapon . | . . . . . . . . . . Slashing Weapon . | . . . . . . . . . . Piercing Weapon . | . . . . . . . . . . Special Melee Weapon . | . . . . . . . . . . Unidentified Prototypes 3 | . . . . . 2 . 1 . . Parts Lost 19 | . 3 . . . 3 1 7 2 3 Power 2 | . 1 . . . . . 1 . . Propulsion 4 | . . . . . 1 . . . 3 Utility 2 | . . . . . 1 . 1 . . Weapon 11 | . 2 . . . 1 1 5 2 . Highest Loss Streak 4 | . 1 . . . 1 1 4 1 2 To Critical Strikes . | . . . . . . . . . . Average Backups 13 | . 7 15 14 15 14 14 14 14 11 Power . | . . 2 2 3 1 . . . . Propulsion 3 | . 3 6 4 4 3 3 4 2 . Utility 4 | . 1 3 3 4 5 6 6 5 4 Weapon 4 | . 2 4 4 4 4 5 3 6 5 Tool/Special . | . . . . . . . . . . Unused Backups 33 | . 1 . 2 . 8 2 5 3 12 Power 6 | . . . 1 . 3 . . 1 1 Propulsion 6 | . . . 1 . 1 1 2 . 1 Utility 14 | . 1 . . . 1 1 2 2 7 Weapon 7 | . . . . . 3 . 1 . 3 Tool/Special . | . . . . . . . . . . Average Slot Usage (%) 96 | . 93 100 95 100 99 99 97 100 67 Engine 6 | . 3 . . . 7 9 8 9 4 Core 1 | . 4 14 14 14 1 . . . . Treads 26 | . 27 28 28 28 26 27 27 27 22 Device 5 | . 10 . . . 4 8 5 . . Storage 9 | . 14 14 14 14 9 9 9 9 4 Processor 7 | . . . . . 9 9 1 18 11 Hackware 2 | . . . . . 2 . 10 . . Protection 1 | . 3 14 14 14 1 . . . . Ballistic Gun 9 | . 23 28 24 27 16 . . . . Ballistic Cannon 22 | . . . . . 18 35 33 35 19 Peak Build Rating 40 | 9 12 10 11 11 40 35 36 34 37 Average Rating 26 | 6 9 10 10 11 31 34 32 29 23 On Entrance 18 | . 9 10 10 11 11 34 35 29 31 Naked Turns 105 | . . . . . . . . . 105 Heaviest Build 62 | 14 29 29 29 30 60 62 62 55 58 Greatest Support 102 | 40 40 40 40 40 64 62 64 64 102 Greatest Overweight (x) 1 | 1 . . . . . . . . 1 Average Overweight (x) . | . . . . . . . . . . Largest Inventory Capacity 15 | 8 15 15 15 15 15 15 15 15 15 Average Capacity 14 | 7 11 15 15 15 15 15 15 15 11 Most Carried 15 | 1 15 15 15 15 15 15 15 15 15 Average Carried 13 | . 7 15 14 15 14 14 14 14 11 Final Capacity 15 | 8 15 15 15 15 15 15 15 15 15 Final Carried 15 | 1 15 15 15 15 15 15 15 15 14 Class Distribution -------------------- 38% | Gunner 25% | Mutant 23% | Scavenger-Gunner 7% | Commander-Gunner 3% | Hacker-Gunner Dominant Class ---------------- Mutant | -10/Materials Mutant | -10/Mines Mutant | -10/Exiles Mutant | -9/Mines Gunner | -8/Materials Scavenger-Gunner | -8/Garrison Gunner | -8/Materials Gunner | -8/Garrison Scavenger-Gunner | -7/Factory Resources | -11 -10 -10 -10 -9 -8 -8 -8 -8 -7 ----------- Run | Yrd Mat Min Exi Min Mat Gar Mat Gar Fac Matter Collected 9939 | 298 762 . 130 86 2869 1483 2512 1549 250 Remotely 1082 | . . . . . . . 1082 . . Salvage Created 8008 | 263 838 . . 133 2994 831 1930 908 111 Parts 529 | 18 51 . . 12 228 61 89 63 7 Haulers Intercepted 8 | . 2 . . . 5 . . . 1 Recyclers Shooed 11 | . 2 . . . 4 . 5 . . Parts Field Recycled . | . . . . . . . . . . Retrieved Matter . | . . . . . . . . . . Parts Self-Destructed . | . . . . . . . . . . Prevented . | . . . . . . . . . . Kills | -11 -10 -10 -10 -9 -8 -8 -8 -8 -7 ------- Run | Yrd Mat Min Exi Min Mat Gar Mat Gar Fac Combat Hostiles Destroyed 187 | . 13 . . 4 47 37 46 38 2 Guns 32 | . 12 . . . 20 . . . . Cannons 95 | . . . . . 16 26 28 23 2 AOE 58 | . 1 . . 4 11 11 17 14 . Classes Destroyed 19 | 3 5 . . . 6 3 1 1 . Worker 19 | 2 1 . . . 15 . 1 . . Builder 29 | . 3 . . 1 20 . 4 . 1 Tunneler 8 | 6 1 . . . . . 1 . . Hauler 8 | . 2 . . . 5 . . . 1 Recycler 22 | 1 2 . . 1 10 . 8 . . Mechanic 4 | . . . . . 2 . 2 . . Watcher 14 | . 3 . . . 5 1 4 1 . Swarmer 57 | . 6 . . 4 13 12 3 19 . Cutter 2 | . . . . . . 2 . . . Grunt 69 | . 7 . . . 19 12 28 2 1 Brawler 10 | . . . . . . . 5 5 . Duelist 3 | . . . . . 2 . . 1 . Protector 6 | . . . . . 1 1 4 . . Sentry 26 | . . . . . 8 7 5 5 1 Demolisher 1 | . . . . . . 1 . . . Specialist 1 | . . . . . . . . 1 . Hunter 6 | . . . . . 3 . 1 2 . Programmer 5 | . . . . . . 2 . 3 . Heavy 1 | . . . . . 1 . . . . Best Kill Streak 12 | 3 4 . . 4 12 5 11 6 2 Combat Bots Only 11 | . 4 . . 4 9 5 11 6 1 Max Kills in Single Turn 4 | 1 1 . . 4 3 4 3 4 1 Gunslinging 1 | . . . . . 1 . . . . Exploded 4 | . 1 . . 4 2 4 2 4 . Melee . | . . . . . . . . . . Uniques/NPCs Destroyed . | . . . . . . . . . . Combat | -11 -10 -10 -10 -9 -8 -8 -8 -8 -7 -------- Run | Yrd Mat Min Exi Min Mat Gar Mat Gar Fac Hostile Shots Fired 687 | . 74 . . 11 155 56 149 102 140 Missed 249 | . 33 . . 2 50 21 49 30 64 Hits 438 | . 41 . . 9 105 35 100 72 76 Melee 16 | . . . . . 1 3 10 2 . Projectile 422 | . 41 . . 9 104 32 90 70 76 AOE 3 | . . . . . . 3 . . . Critical Strikes 22 | . 1 . . . 3 3 12 3 . Actively Blocked 1 | . . . . . 1 . . . . Damage Taken 6967 | 34 601 . . 69 1682 705 1820 1125 931 Core 1281 | . 84 . . 13 196 23 156 109 700 Absorbed by Shields . | . . . . . . . . . . Redirected to Shielding 47 | . 3 . . . 44 . . . . Ignored by Resistances 10 | . . . . . . . 10 . . Regen/Repaired (Parts) 386 | . 170 . . . . . 216 . . Core Remaining (%) 57 | 100 . . . 61 . . . 12 . Volleys Fired 504 | 28 79 1 . 11 140 63 101 68 13 Largest 4 | 2 2 2 . 2 4 4 4 4 4 Hottest 160 | 60 60 40 . 40 160 160 160 153 153 Shots Fired 1408 | 56 156 2 1 22 524 177 264 176 30 Gun 572 | 56 156 2 1 21 336 . . . . Cannon 779 | . . . . . 175 166 245 163 30 Launcher 57 | . . . . 1 13 11 19 13 . Special . | . . . . . . . . . . Kinetic 1278 | 28 111 2 1 21 511 166 245 163 30 Thermal . | . . . . . . . . . . Explosive 40 | . . . . 1 13 11 15 . . Electromagnetic 90 | 28 45 . . . . . 4 13 . Robot Hit Streak 17 | 5 8 10 . 11 17 10 11 13 10 Robot Miss Streak 6 | 3 4 . . 2 3 5 6 5 2 Penetration Max 1 | . . . . . 1 . 1 1 . Secondary Targets 3 | . 1 . . . 2 . . . . Max Gunslinging Chain 1 | . 1 . . . 1 . . . . Shots Hit Robots 727 | 32 88 2 . 13 283 73 144 80 12 Core Hits 436 | 13 43 . . 7 157 52 110 47 7 Critical Kills 2 | . . . . . 2 . . . . Critical Parts Destroyed 1 | . . . . . 1 . . . . Critical Strikes 39 | . . . . . 6 3 22 6 2 Destroy 3 | . . . . . 3 . . . . Blast 36 | . . . . . 3 3 22 6 2 Melee Attacks . | . . . . . . . . . . Impact . | . . . . . . . . . . Slashing . | . . . . . . . . . . Piercing . | . . . . . . . . . . Sneak Attacks . | . . . . . . . . . . Combat Hostiles . | . . . . . . . . . . Follow-up Attacks . | . . . . . . . . . . Damage Inflicted 21319 | 388 1203 21 . 308 7054 2674 6072 3096 503 Guns 4494 | 353 1042 21 . 152 2926 . . . . Cannons 11374 | . . . . . 2738 1972 4084 2203 377 Explosions 5441 | 35 161 . . 156 1383 702 1987 893 124 Melee . | . . . . . . . . . . Ramming 10 | . . . . . 7 . 1 . 2 Kinetic 15180 | 101 606 21 . 152 5664 1972 4084 2203 377 Thermal 597 | 35 161 . . . 183 . . 94 124 Explosive 3536 | . . . . 156 1200 702 1478 . . Electromagnetic 1996 | 252 436 . . . . . 509 799 . Impact . | . . . . . . . . . . Slashing . | . . . . . . . . . . Piercing . | . . . . . . . . . . Highest Corruption 23 | . 2 2 2 2 4 9 15 23 . Average Corruption 8 | . 2 2 2 2 4 5 9 21 . Corruption Purged . | . . . . . . . . . . Corruption Blocked . | . . . . . . . . . . Effects 290 | . 29 2 3 3 29 55 66 103 . Message Errors 72 | . 6 . . . 6 16 14 30 . Matter Fused 78 | . 6 1 2 1 7 13 21 27 . Heat Flow Errors 33 | . 2 1 . 1 5 3 7 14 . Energy Discharges 39 | . 7 . . . 4 8 7 13 . Parts Rejected 1 | . . . . . . 1 . . . Parts Fused 3 | . . . . . . 1 2 . . Data Loss (minor) 25 | . 1 . . . 1 7 5 11 . Data Loss (major) 10 | . 3 . . . 2 1 2 2 . Misfires 12 | . 2 . 1 1 3 1 4 . . Alerts 5 | . 1 . . . . 3 . 1 . Misdirections 1 | . . . . . . . 1 . . Weapon Failures 11 | . 1 . . . 1 1 3 5 . Overload Shots . | . . . . . . . . . . Overflow Damage 535 | . . . . . 255 39 109 88 44 Projectiles 301 | . . . . . 127 39 96 39 . Explosions 234 | . . . . . 128 . 13 49 44 Melee . | . . . . . . . . . . Knockbacks 80 | . . . . . 22 13 29 14 2 Impact . | . . . . . . . . . . Kinetic 76 | . . . . . 21 13 26 14 2 Secondary 4 | . . . . . 1 . 3 . . Self-Inflicted Damage 536 | 34 7 . . . 45 72 176 201 1 Shots 22 | 1 1 . . . 2 3 5 10 . Rammed 4 | . . . . . 1 . 2 . 1 Targets Rammed 4 | . . . . . 1 . 2 . 1 Kicked . | . . . . . . . . . . Crushed . | . . . . . . . . . . Highest Temperature 394 | 72 216 258 2 119 291 230 394 346 156 Average Temperature 76 | 28 29 117 2 19 62 53 112 99 65 Received Heat Transfer 2064 | . 186 . . . 459 243 855 117 204 Effects 13 | . . . . . . 1 8 4 . Shutdowns 1 | . . . . . . . 1 . . Energy Bleed 4 | . . . . . . . 3 1 . Interference 7 | . . . . . . 1 3 3 . Matter Decay 1 | . . . . . . . 1 . . Siege Activations . | . . . . . . . . . . Martial Activations . | . . . . . . . . . . Shielding Activations . | . . . . . . . . . . Robots Disrupted . | . . . . . . . . . . Combat Hostiles . | . . . . . . . . . . Robots Corrupted 2 | . . . . . . . 1 1 . Combat Hostiles 2 | . . . . . . . 1 1 . Parts Fried 7 | 1 . . . . . . 2 4 . Impact Corruptions . | . . . . . . . . . . Robots Melted . | . . . . . . . . . . Combat Hostiles . | . . . . . . . . . . Parts Melted . | . . . . . . . . . . Heat Transferred 600 | . 250 . . . 100 . . 150 100 Parts Sabotaged . | . . . . . . . . . . Parts Stolen . | . . . . . . . . . . Parts Stripped . | . . . . . . . . . . Power Chain Reactions 7 | 1 3 . . . . . . 3 . Alert | -11 -10 -10 -10 -9 -8 -8 -8 -8 -7 ------- Run | Yrd Mat Min Exi Min Mat Gar Mat Gar Fac Maximum Alert Level 5 | . . . . . 4 5 5 5 5 Low Security (%) 28 | 100 100 100 . 100 28 . . . . Level 1 5 | . . . . . 22 . . . . Level 2 4 | . . . . . 17 . . . . Level 3 15 | . . . . . 28 28 23 3 . Level 4 20 | . . . . . 4 27 66 13 35 Level 5 23 | . . . . . . 43 9 83 3 High Security 3 | . . . . . . . . . 60 Max Security . | . . . . . . . . . . Peak Influence 2834 | 10 175 55 . 96 1197 2304 1667 2834 1891 Initial 1487 | . . 55 . . 17 777 1123 1067 1487 Average 1014 | 1 67 34 . 28 461 1481 1240 2126 1618 Influence Increases 8086 | 45 570 . . 106 1791 1597 1496 1887 594 Destroy 0b10 Robot/C 3940 | . 260 . . 80 920 800 860 960 60 Destroy 0b10 Robot/NC 555 | 45 60 . . 10 290 10 120 5 15 Destroy Leader 602 | . 70 . . 10 260 30 188 30 14 Allied During Kill 175 | . . . . . . 32 4 132 7 Successful Hack 149 | . 53 . . . 22 34 26 14 . Select Force Hacks 150 | . 60 . . . 90 . . . . Disable Machine 360 | . . . . . 60 15 120 15 150 Anti-Garrison Action 1100 | . . . . . . 600 . 500 . Destroy Structure 485 | . 7 . . 6 119 61 163 81 48 Lose Combat Pursuer 570 | . 60 . . . 30 15 15 150 300 Influence Decreases 6195 | 45 426 129 15 60 641 489 2157 696 1537 Entered New Map 3656 | . . 89 15 . 29 419 1181 576 1347 Time Decay 1839 | 45 406 40 . 60 582 . 586 . 120 Lost Part 180 | . 20 . . . 30 10 70 20 30 Lost Ally 220 | . . . . . . 60 20 100 40 Purge Threat 300 | . . . . . . . 300 . . Squads Dispatched 40 | . 3 . . 1 10 . 12 . 14 Investigation 12 | . 3 . . . 4 . 5 . . Extermination . | . . . . . . . . . . Reinforcement 3 | . . . . 1 2 . . . . Assault 21 | . . . . . 2 . 5 . 14 Garrison 4 | . . . . . 2 . 2 . . Intercept . | . . . . . . . . . . Searches Triggered . | . . . . . . . . . . Construction Impeded 2 | . . . . 1 1 . . . . Haulers Reinforced . | . . . . . . . . . . Active Scanning Responses . | . . . . . . . . . . Cargo Convoy Interrupts . | . . . . . . . . . . Stealth | -11 -10 -10 -10 -9 -8 -8 -8 -8 -7 --------- Run | Yrd Mat Min Exi Min Mat Gar Mat Gar Fac Distress Signals 4 | . . . . . 1 . 1 1 1 Communications Jammed . | . . . . . . . . . . Distress Signals . | . . . . . . . . . . Times Spotted 262 | . 23 . . 4 58 33 60 50 34 Peak Tracking Total 13 | . 4 . . 4 5 5 10 6 13 Tactical Retreats 19 | . 2 . . . 2 1 1 7 6 Traps | -11 -10 -10 -10 -9 -8 -8 -8 -8 -7 ------- Run | Yrd Mat Min Exi Min Mat Gar Mat Gar Fac Traps Triggered 10 | . 2 . . . 1 1 3 2 1 Indirectly . | . . . . . . . . . . Trap Hack Attempts . | . . . . . . . . . . Triggered . | . . . . . . . . . . Disarmed . | . . . . . . . . . . Reprogrammed . | . . . . . . . . . . Reused . | . . . . . . . . . . Traps Extracted . | . . . . . . . . . . Installed . | . . . . . . . . . . Triggered . | . . . . . . . . . . Machines | -11 -10 -10 -10 -9 -8 -8 -8 -8 -7 ---------- Run | Yrd Mat Min Exi Min Mat Gar Mat Gar Fac Machines Disabled 36 | . . . . . 4 7 8 7 10 Max in Single Turn 5 | . . . . . 2 1 2 2 5 Garrison Relay 10 | . . . . . . 6 . 4 . Machines Repaired . | . . . . . . . . . . Machines Dismantled . | . . . . . . . . . . Machines Sabotaged . | . . . . . . . . . . Overloaded Fab Kills . | . . . . . . . . . . Hacking | -11 -10 -10 -10 -9 -8 -8 -8 -8 -7 --------- Run | Yrd Mat Min Exi Min Mat Gar Mat Gar Fac Machines Accessed 43 | . 11 . . . 13 2 11 4 2 Terminals 30 | . 8 . . . 9 2 7 4 . Fabricators . | . . . . . . . . . . Repair Stations 3 | . 1 . . . . . 1 . 1 Recycling Units 4 | . 2 . . . 2 . . . . Scanalyzers 4 | . . . . . 1 . 2 . 1 Garrison Access 2 | . . . . . 1 . 1 . . Total Hacks 151 | . 38 . . . 33 7 62 8 3 Successful 98 | . 24 . . . 25 3 43 1 2 Failed 53 | . 14 . . . 8 4 19 7 1 Catastrophic 10 | . 1 . . . 1 1 4 2 1 Database Lockouts . | . . . . . . . . . . Manual 93 | . 30 . . . 27 1 34 . 1 Terminals 100 | . 29 . . . 22 7 34 8 . Fabricators . | . . . . . . . . . . Repair Stations 11 | . 4 . . . . . 6 . 1 Recycling Units 9 | . 5 . . . 4 . . . . Scanalyzers 27 | . . . . . 5 . 20 . 2 Garrison Access 4 | . . . . . 2 . 2 . . Terminal Hacks 15 | . 6 . . . 1 2 5 1 . Robot Analysis 9 | . 5 . . . 1 . 3 . . Open Door 1 | . . . . . . 1 . . . Emergency Access Points 2 | . . . . . . 1 . 1 . Terminal Index 1 | . 1 . . . . . . . . Unreport Threat 2 | . . . . . . . 2 . . Fabricator Hacks . | . . . . . . . . . . Repair Station Hacks 7 | . 4 . . . . . 3 . . Scan Component 4 | . 2 . . . . . 2 . . Repair 3 | . 2 . . . . . 1 . . Recycling Unit Hacks . | . . . . . . . . . . Scanalyzer 26 | . . . . . 4 . 20 . 2 Insert Component 10 | . . . . . 2 . 7 . 1 Analyze 16 | . . . . . 2 . 13 . 1 Garrison Access Hacks 2 | . . . . . 1 . 1 . . Unlock Access 2 | . . . . . 1 . 1 . . Unauthorized Hacks 48 | . 14 . . . 19 1 14 . . Terminals 40 | . 12 . . . 14 1 13 . . Botnet 20 | . 6 . . . 7 1 6 . . Operators 3 | . 1 . . . 1 . 1 . . Skim 17 | . 5 . . . 6 . 6 . . Fabricators . | . . . . . . . . . . Repair Stations 1 | . . . . . . . 1 . . Patch 1 | . . . . . . . 1 . . Recycling Units 5 | . 2 . . . 3 . . . . Recyclers 1 | . . . . . 1 . . . . Tunnel 4 | . 2 . . . 2 . . . . Scanalyzers 1 | . . . . . 1 . . . . Extract 1 | . . . . . 1 . . . . Garrison Access 1 | . . . . . 1 . . . . Intercept 1 | . . . . . 1 . . . . Data Cores Recovered . | . . . . . . . . . . Used . | . . . . . . . . . . Hacking Detections 39 | . 11 . . . 11 2 9 4 2 Full Trace Events 5 | . 1 . . . 1 . 1 2 . Feedback Events . | . . . . . . . . . . Feedback Blocked . | . . . . . . . . . . Robot Schematics Acquired . | . . . . . . . . . . Robots Built . | . . . . . . . . . . Authchips . | . . . . . . . . . . Time . | . . . . . . . . . . Total Robot Build Rating . | . . . . . . . . . . Part Schematics Acquired 11 | . . . . . 3 . 7 . 1 Parts Built . | . . . . . . . . . . Authchips . | . . . . . . . . . . Time . | . . . . . . . . . . Total Part Build Rating . | . . . . . . . . . . Parts Repaired 3 | . 2 . . . . . 1 . . Time 96 | . 52 . . . . . 44 . . Parts Recycled . | . . . . . . . . . . Recycled Matter . | . . . . . . . . . . Retrieved Matter . | . . . . . . . . . . Retrieved Components . | . . . . . . . . . . Parts Scanalyzed 10 | . . . . . 2 . 7 . 1 Part Schematics Acquired 10 | . . . . . 2 . 7 . 1 Parts Damaged . | . . . . . . . . . . Bothacking | -11 -10 -10 -10 -9 -8 -8 -8 -8 -7 ------------ Run | Yrd Mat Min Exi Min Mat Gar Mat Gar Fac Used RIF Installer . | . . . . . . . . . . Robots Hacked . | . . . . . . . . . . Non-combat . | . . . . . . . . . . Combat . | . . . . . . . . . . Robot Hacks Applied . | . . . . . . . . . . Relay Couplers Released 42 | . . . . . . 26 . 16 . Machine Destruction 39 | . . . . . . 23 . 16 . Programmers 3 | . . . . . . 3 . . . Fabnet Peak Effective % . | . . . . . . . . . . Robots Rewired 9 | . . . . . . 3 . 6 . Allies Hacked . | . . . . . . . . . . Hacks Repelled . | . . . . . . . . . . Allies | -11 -10 -10 -10 -9 -8 -8 -8 -8 -7 -------- Run | Yrd Mat Min Exi Min Mat Gar Mat Gar Fac Total Allies 11 | . . . . . . 4 . 7 . Largest Group 7 | . . . . . . 3 1 7 2 Highest-Rated Group 139 | . . . . . . 72 20 139 36 Highest-Rated Ally 31 | . . . . . . 24 20 31 18 Initial Warlord ECA Mod 37 | . . . . . . . 10 10 17 Total Orders . | . . . . . . . . . . Ally Attacks 46 | . . . . . . 13 1 28 4 Total Damage 1134 | . . . . . . 250 38 746 100 Kills 17 | . . . . . . 4 1 10 2 Allies Corrupted . | . . . . . . . . . . Allies Melted . | . . . . . . . . . . Intel | -11 -10 -10 -10 -9 -8 -8 -8 -8 -7 ------- Run | Yrd Mat Min Exi Min Mat Gar Mat Gar Fac Active Infowar (turns) 1624 | 109 1515 . . . . . . . . Terrain 1624 | 109 1515 . . . . . . . . Robot Analysis Total 9 | . 5 . . . 1 . 3 . . Derelict Logs Recovered 1 | . . . . 1 . . . . . Drone Launches . | . . . . . . . . . . Drone Recoveries . | . . . . . . . . . . Exploration | -11 -10 -10 -10 -9 -8 -8 -8 -8 -7 ------------- Run | Yrd Mat Min Exi Min Mat Gar Mat Gar Fac Turns Passed 12354 | 242 1973 99 341 265 2833 2127 1826 2022 626 Spaces Moved 6637 | 69 1017 61 207 145 1398 1205 876 1059 600 Core 315 | 10 . . . . . . . . 305 Treads 6238 | 59 1017 61 207 145 1398 1205 876 1059 211 Legs . | . . . . . . . . . . Wheels . | . . . . . . . . . . Hover 84 | . . . . . . . . . 84 Flight . | . . . . . . . . . . Fastest Speed 50 | 50 160 160 160 160 150 155 150 150 50 Average Speed 151 | 146 160 160 160 160 160 155 156 156 89 Slowest Speed 163 | 160 160 160 160 160 163 155 163 158 159 Overloaded Moves . | . . . . . . . . . . Propulsion Burnouts . | . . . . . . . . . . Robots Hopped . | . . . . . . . . . . Potential Cave-ins . | . . . . . . . . . . Cave-ins Triggered . | . . . . . . . . . . Exploration Rate (%) 54 | 6 97 18 54 50 79 86 45 82 28 Regions Visited 9 Branch Regions 3 Pre-discovered Areas 5 | . 2 . . 1 2 . . . . Known Exits Taken 2 | . . . . . 1 . 1 . . Unknown Exits Taken 5 | 1 1 1 1 1 . . . . . Scrap Searched . | . . . . . . . . . . Spaces Dug 10 | . . . . . . . 3 5 2 Terrain Destroyed 413 | 2 7 . . 6 129 31 168 11 59 Melee . | . . . . . . . . . . Projectile 171 | . . . . . 60 5 98 . 8 AOE 242 | 2 7 . . 6 69 26 70 11 51 Terrain Rammed . | . . . . . . . . . . Walls Destroyed . | . . . . . . . . . . Machines Disabled . | . . . . . . . . . . Actions | -11 -10 -10 -10 -9 -8 -8 -8 -8 -7 --------- Run | Yrd Mat Min Exi Min Mat Gar Mat Gar Fac Total 7932 | 156 1226 61 219 159 1681 1339 1116 1296 679 Wait 282 | 52 87 . . . 4 19 56 53 11 Move 6628 | 68 1016 60 206 144 1397 1204 876 1058 599 Hop . | . . . . . . . . . . Pick Up 94 | 1 18 . 4 . 25 8 18 9 11 Fast Attach 43 | 7 5 . . . 14 1 7 4 5 Attach 27 | . 2 . 2 . 7 3 6 4 3 Detach 24 | . 1 . 2 . 6 1 5 1 8 Swap 123 | . 9 . 1 3 42 18 25 20 5 Drop 132 | . 9 . 4 1 45 13 19 18 23 Fire 504 | 28 79 1 . 11 140 63 101 68 13 Melee . | . . . . . . . . . . Ram 2 | . . . . . . . 1 . 1 Kick . | . . . . . . . . . . Crush 3 | . . . . . 1 . 2 . . Escape Stasis . | . . . . . . . . . . Rewire 70 | . . . . . . 9 . 61 . Trap . | . . . . . . . . . . Miscellaneous . | . . . . . . . . . . Route ------- -11/Scrapyard -10/Materials (discovered 5 exits: [*Mat x3] / [*Min] / Sub) -10/Mines (discovered 2 exits: [*Mat] / *Exi) -10/Exiles -9/Mines -8/Materials (discovered 3 exits: *Fac x2 / Gar) -8/Garrison (discovered 4 exits: *Mat x4) -8/Materials (discovered 2 exits: *Fac / Gar) -8/Garrison (discovered 3 exits: *Fac x3) -7/Factory (discovered 2 exits: [*Fac] / Low) History --------- Turn | Location | Event 17 | -11/Scrapyard | Discovered new exit (range 16) 243 | -11/Scrapyard | Entered Materials 301 | -10/Materials | Build established: Mutant 579 | -10/Materials | Repaired Lgt. Treads 602 | -10/Materials | Discovered new exit (range 16) 987 | -10/Materials | Discovered new exit (range 13) 1480 | -10/Materials | Discovered new exit (range 15) 1714 | -10/Materials | Discovered new exit (range 16) 1790 | -10/Materials | Learned 4 Subcaves zone layouts 1856 | -10/Materials | Identified exit to Subcaves 1911 | -10/Materials | Loaded intel: 11 trap records 1991 | -10/Materials | Learned Storage garrison access intel 2035 | -10/Materials | Learned location of 2 exits from Subcaves 2088 | -10/Materials | Learned Materials emergency access door positions 2117 | -10/Materials | Repaired Lgt. Assault Rifle 2216 | -10/Materials | Entered Mines 2234 | -10/Mines | Discovered new exit (range 8) 2307 | -10/Mines | Deemed a non-threat by the Exiles lab entrance 2309 | -10/Mines | Discovered new exit (range 5) 2315 | -10/Mines | Entered Exiles 2315 | -10/Exiles | Found Exiles lab abandoned 2641 | -10/Exiles | Discovered new exit (range 10) 2656 | -10/Exiles | Entered Mines 2666 | -9/Mines | Met a Derelict bent on vengeance 2796 | -9/Mines | Found a hidden stash of uninstalled traps 2912 | -9/Mines | Discovered new exit (range 8) 2921 | -9/Mines | Entered Materials 2921 | -8/Materials | Evolved 4 slots: Propulsion x1, Utility x1, Weapon x2 3029 | -8/Materials | Identified exit to Garrison 3512 | -8/Materials | Build established: Gunner 3910 | -8/Materials | Discovered new exit (range 10) 4188 | -8/Materials | Build established: Scavenger-Gunner 4588 | -8/Materials | Discovered new exit (range 13) 4593 | -8/Materials | Build established: Gunner 4631 | -8/Materials | Learned Factory emergency access door positions 4662 | -8/Materials | Learned Factory stockpile data 4696 | -8/Materials | Learned Storage security intel 4719 | -8/Materials | Learned Factory repair station intel 4751 | -8/Materials | Learned Factory emergency access door positions 5321 | -8/Materials | First assault squad dispatched 5438 | -8/Materials | Destroyed 9 combat bots 5586 | -8/Materials | Garrison activated, responded to threat 5754 | -8/Materials | Entered Garrison 5812 | -8/Garrison | Triggered checkpoint 5918 | -8/Garrison | Triggered checkpoint 5984 | -8/Garrison | Triggered checkpoint 6061 | -8/Garrison | Discovered new exit (range 14) 6074 | -8/Garrison | Triggered checkpoint 6197 | -8/Garrison | Discovered new exit (range 5) 6240 | -8/Garrison | Build established: Scavenger-Gunner 6330 | -8/Garrison | Triggered checkpoint 6360 | -8/Garrison | Triggered checkpoint 6537 | -8/Garrison | Discovered new exit (range 14) 6684 | -8/Garrison | Triggered checkpoint 6738 | -8/Garrison | Garrison Relay disabled 6740 | -8/Garrison | Garrison Relay disabled 6944 | -8/Garrison | Discovered new exit (range 13) 7014 | -8/Garrison | Triggered checkpoint 7048 | -8/Garrison | Garrison Relay disabled 7050 | -8/Garrison | Garrison Relay disabled 7463 | -8/Garrison | Garrison Relay disabled 7610 | -8/Garrison | Triggered checkpoint 7612 | -8/Garrison | Garrison Relay disabled 7738 | -8/Garrison | Rescued a captive Derelict 7857 | -8/Garrison | Build established: Gunner 7881 | -8/Garrison | Entered Materials 7881 | -8/Materials | Accompanied by 1 ally 7938 | -8/Materials | Repaired Adv. Assault Cannon 8281 | -8/Materials | First assault squad dispatched 8416 | -8/Materials | Build established: Hacker-Gunner 8496 | -8/Materials | Destroyed 11 combat bots 8740 | -8/Materials | Core integrity fell below 50% 9011 | -8/Materials | Build established: Gunner 9308 | -8/Materials | Discovered new exit (range 11) 9512 | -8/Materials | System corruption reached 10% 9515 | -8/Materials | Garrison activated, responded to threat 9543 | -8/Materials | Lost 4 parts (4w) 9570 | -8/Materials | Destroyed 10 combat bots 9707 | -8/Materials | Identified exit to Garrison 9707 | -8/Materials | Entered Garrison 9745 | -8/Garrison | Triggered checkpoint 9799 | -8/Garrison | Garrison Relay disabled 9925 | -8/Garrison | Triggered checkpoint 10215 | -8/Garrison | Triggered checkpoint 10280 | -8/Garrison | Discovered new exit (range 11) 10378 | -8/Garrison | Garrison Relay disabled 10495 | -8/Garrison | Triggered checkpoint 10511 | -8/Garrison | Triggered checkpoint 10515 | -8/Garrison | Core integrity fell below 20% 10589 | -8/Garrison | Triggered checkpoint 10611 | -8/Garrison | Rescued a captive Derelict 10753 | -8/Garrison | Build established: Commander-Gunner 10962 | -8/Garrison | Lost 3 allies 10968 | -8/Garrison | Discovered new exit (range 10) 11183 | -8/Garrison | Triggered checkpoint 11293 | -8/Garrison | Discovered new exit (range 13) 11353 | -8/Garrison | Triggered checkpoint 11566 | -8/Garrison | Garrison Relay disabled 11675 | -8/Garrison | Build established: Gunner 11729 | -8/Garrison | Entered Factory 11729 | -7/Factory | Accompanied by 2 allies 11729 | -7/Factory | Evolved 2 slots: Propulsion x2 11730 | -7/Factory | Identified exit to Lower Caves 11733 | -7/Factory | Loaded intel: 6 repair station locations 11979 | -7/Factory | High security lockdown imminent 12014 | -7/Factory | Build established: Scavenger-Gunner 12059 | -7/Factory | High security lockdown engaged 12213 | -7/Factory | Core integrity fell below 50% 12318 | -7/Factory | Discovered new exit (range 13) 12348 | -7/Factory | Core integrity fell below 20% 12355 | -7/Factory | Destroyed by Y-54 Guardian with Flak Gun Last Messages --------------- 12177_ Imp. Hover Unit destroyed. 12177_ Dropped Imp. Light Cannon. 12177_ Dropped Gauss Cannon. 12178_ Slammed into X-67 Chaingunner. 12179_ ALERT: Assault forces dispatched. 12179_ Imp. Hover Unit destroyed. 12207_ Knocked back. 12226_ Triggered Blade Trap. 12226_ Massive razor-sharp blades shoot up from within the floor. 12226_ Imp. Targeting Computer severed. 12239_ O-24 Administrator: "IFF HANDSHAKE FAILED. SECURING TERMINAL." 12269_ C-30 ARC bursts open, deploying its payload. 12269_ G-50 Soldier unfolds itself. 12269_ G-47 Trooper unfolds itself. 12269_ I-36 Angel unfolds itself. 12318_ EXIT=FOUND 12329_ ALERT: Heavy assault forces dispatched. 12338_ Slug penetrates Wall. Map ----- +----------------------------------------------------+ | ?# # """" #????????""??# """" | | ?# # #????????"""???? | | ?# # """" #?????????R"????? ! | | ?# + """" #????????"""?????##### | | ?# # """" #????????????????????? | | ?# # """" #????????????????????? | | ?# # """" #????????????????????? | | ?# # """" ????????????????????? | | ?# # ?????????????????????? | | ?# # """" ?????????????????????? | | ?##########+### """" ?????????????????????? | | ?# # """" ???????????????????? | | ?# """""" # """" "??????????????????? | | ?# """""" # """" ??????????????????? | | ??? """""" # """" ""?????????????????? | | ?? """""" # ""?????????????????? | | ??? ???"""""" + """" ""?????????????????? | | ???????"""""" # """" ??????????????????? | | ???????"""""" #YY """" ???????????????????? | | ?# """""" # """" #????????????????????? | | ?# """""" # """" #????????????????????? | | ?# # """" #????????????????????? | | ?# Y #????????????????????? | | ???##########"#Y +????????????????????? | | ????????????### % #????????????????????? | | ??????????????# @ #????????????????????? | | ??????????????# ###+####????????????????????? | | ????????????### # ??????????????????????? | | ????????????# # #???????!?????????????? | | ????????????# # #?????????????????????? | | ????????????# < #""" #?????????????????????? | | ????????????# #""" #?????????????????????? | | ????????????# #""" #?????????????????????? | | ????????????######### ]#?????????????????????? | | ????????????????????#""" #?????????????????????? | | ???????????????????????? #?????????????????????? | | ???????????????????????? #?????????????????????? | | ???????????????????????? #?????????????????????? | | ????????????????????????? #?????????????????????? | | ?????????????????????????##?????????????????????? | | ????????????????????????????????????????????????? | | ????????????????????????????????????????????????? | | ????????????????????????????????????????????????? | | ???????????????????????????????????????[????????? | | ????????????????????????????????????????????????? | | ????????????????????????????????????????????????? | | ????????????????????????????????????????????????? | | ????????????????????????????????????????????????? | | ????????????????????????????????????????????????? | | ????????????????????????????????????????????????? | +----------------------------------------------------+ Best States ------------- Heat Dissipation 45 Energy Generation 16 Energy Capacity 290 Matter Stores 300 Matter Capacity 300 Sight Range 16 Terrain Scan Range 16 Terrain Scan Density 10 Armor Coverage 150 Resistance: TH 10 Weapon Shielding 33 Evasion (%) 54 Targeting Accuracy 12 Recoil Reduction 5 Offensive Hacking 10 Defensive Hacking 10 Item Schematics ----------------- Fission Core | -8/Materials | Scanalyzed Hpw. Tractor Beam | -8/Materials | Scanalyzed Arm. Wheel | -8/Materials | Extracted Cmb. Airjet | -8/Materials | Scanalyzed Imp. Propulsion Shielding | -8/Materials | Scanalyzed Gauss Cannon | -8/Materials | Scanalyzed Gravmag System | -8/Materials | Scanalyzed Graphene Brace | -8/Materials | Scanalyzed Rnf. Deuterium Engine | -8/Materials | Scanalyzed Reflective Plating | -8/Materials | Scanalyzed System Restoration Module | -7/Factory | Scanalyzed Robot Schematics ------------------ None Fabricated ------------ Nothing Repaired ---------- Lgt. Treads | 28% | -10/Materials Lgt. Assault Rifle | 12% | -10/Materials Adv. Assault Cannon | 23% | -8/Materials Alien Tech Used ----------------- None Achievements -------------- None Challenges ------------ None Game ------ Seed BoreNeutronSpoofer Manual? 0 Play Time 01:08:24 Cumulative 560.7 hours Start 2025.08.20 @ 21:37:26 End 2025.08.20 @ 22:46:25 Sessions 1 Manual Loads 0 Difficulty Rogue Special Mode None Game No. 293 Rogue 293 Adventurer 0 Explorer 0 Win Type - Total 6 Types 3/0/1/1/0/0/0/0/0/1 Lore% 86 Gallery% 77 Achievement% 68 Wizard Run 0 Options --------- Layout 2 ASCII 0 Keyboard 1 Movement Vi Keybinds 0 Fullscreen 1 Font 16/Tamsyn Map View 55x47 Zoom Use 0% Tactical HUD 1 Map Filters NONE Filters NONE Steam 0 RUN: c7c304ac-e17b-4b61-9eb3-bb15fb996d0a